[Event "Late-Titled-Tuesday-Blitz-May-14-2024"]
[Site "Chess.com"]
[Date "2024.05.14"]
[Round "8"]
[White "NMJeevanK"]
[Black "GMMikhailKazakov"]
[Result "0-1"]
[WhiteElo "2701"]
[BlackElo "2530"]
[TimeControl "180+1"]
[EndTime "15:27:38 PDT"]
[Termination "GMMikhailKazakov won by checkmate"]

1. e4 {[%clk 0:02:53.4]} 1... e5 {[%clk 0:02:54.6]} 2. Nf3 {[%clk 0:02:53.3]}
2... Nc6 {[%clk 0:02:52.6]} 3. Nc3 {[%clk 0:02:52.5]} 3... Nf6 {[%clk
0:02:51.6]} 4. a4 {[%clk 0:02:53.2]} 4... g6 {[%clk 0:02:50.2]} 5. Bb5 {[%clk
0:02:52.3]} 5... d6 {[%clk 0:02:47.3]} 6. h3 {[%clk 0:02:50.6]} 6... Bg7 {[%clk
0:02:47.1]} 7. d4 {[%clk 0:02:50.5]} 7... exd4 {[%clk 0:02:46.1]} 8. Nxd4 {[%clk
0:02:51.4]} 8... Bd7 {[%clk 0:02:46.2]} 9. O-O {[%clk 0:02:49.1]} 9... O-O
{[%clk 0:02:43.8]} 10. Bg5 {[%clk 0:02:45.2]} 10... h6 {[%clk 0:02:40.2]} 11.
Bxf6 {[%clk 0:02:45.2]} 11... Qxf6 {[%clk 0:02:37.6]} 12. Nxc6 {[%clk
0:02:44.2]} 12... bxc6 {[%clk 0:02:36.1]} 13. Bd3 {[%clk 0:02:43.8]} 13... Rab8
{[%clk 0:02:34.9]} 14. Rb1 {[%clk 0:02:41.1]} 14... Qg5 {[%clk 0:02:32.3]} 15.
Qf3 {[%clk 0:02:32.3]} 15... Rb4 {[%clk 0:02:12.9]} 16. Nd1 {[%clk 0:02:09.2]}
16... Rfb8 {[%clk 0:02:06.4]} 17. b3 {[%clk 0:02:03.6]} 17... Rxa4 {[%clk
0:02:00.3]} 18. Ne3 {[%clk 0:02:03]} 18... Rab4 {[%clk 0:01:56]} 19. Nc4 {[%clk
0:02:02.7]} 19... d5 {[%clk 0:01:43.9]} 20. exd5 {[%clk 0:01:57.5]} 20... cxd5
{[%clk 0:01:44.8]} 21. Ne3 {[%clk 0:01:56.5]} 21... c6 {[%clk 0:01:40.7]} 22.
Rfe1 {[%clk 0:01:51.3]} 22... Rf4 {[%clk 0:01:38.8]} 23. Qg3 {[%clk 0:01:46.8]}
23... Qxg3 {[%clk 0:01:37.8]} 24. fxg3 {[%clk 0:01:47.7]} 24... Rfb4 {[%clk
0:01:37.4]} 25. Kh2 {[%clk 0:01:45.9]} 25... a5 {[%clk 0:01:36.8]} 26. Rbd1
{[%clk 0:01:43.8]} 26... Be6 {[%clk 0:01:28.6]} 27. Nf1 {[%clk 0:01:36]} 27...
Bc3 {[%clk 0:01:16.7]} 28. Re3 {[%clk 0:01:33.5]} 28... Bd4 {[%clk 0:01:10.5]}
29. Re2 {[%clk 0:01:33.5]} 29... Kg7 {[%clk 0:01:05.5]} 30. Nd2 {[%clk
0:01:31.4]} 30... Bf6 {[%clk 0:01:00.3]} 31. Rf1 {[%clk 0:01:29.5]} 31... a4
{[%clk 0:00:57.7]} 32. bxa4 {[%clk 0:01:29.4]} 32... Rxa4 {[%clk 0:00:58.6]} 33.
Nb3 {[%clk 0:01:27.3]} 33... Be7 {[%clk 0:00:46.7]} 34. Rfe1 {[%clk 0:01:25.9]}
34... c5 {[%clk 0:00:38.4]} 35. Rxe6 {[%clk 0:01:15.1]} 35... fxe6 {[%clk
0:00:35.7]} 36. Rxe6 {[%clk 0:01:16]} 36... c4 {[%clk 0:00:27.6]} 37. Rxe7+
{[%clk 0:01:14.1]} 37... Kf6 {[%clk 0:00:27.8]} 38. Re3 {[%clk 0:00:54.4]} 38...
cxb3 {[%clk 0:00:23.6]} 39. Rf3+ {[%clk 0:00:54.5]} 39... Kg7 {[%clk 0:00:22.2]}
40. cxb3 {[%clk 0:00:41.1]} 40... Rxb3 {[%clk 0:00:22.7]} 41. Kg1 {[%clk
0:00:31.6]} 41... Raa3 {[%clk 0:00:20.4]} 42. Be2 {[%clk 0:00:31.8]} 42... Rxf3
{[%clk 0:00:19.8]} 43. gxf3 {[%clk 0:00:32.4]} 43... Kf6 {[%clk 0:00:18]} 44.
Kf2 {[%clk 0:00:33]} 44... Ke5 {[%clk 0:00:18.3]} 45. g4 {[%clk 0:00:25.6]}
45... Kf4 {[%clk 0:00:17.7]} 46. h4 {[%clk 0:00:24.8]} 46... d4 {[%clk
0:00:17.6]} 47. h5 {[%clk 0:00:24.6]} 47... g5 {[%clk 0:00:17.6]} 48. Bd1 {[%clk
0:00:22.9]} 48... d3 {[%clk 0:00:16.7]} 49. Ke1 {[%clk 0:00:22.6]} 49... Ra2
{[%clk 0:00:16.7]} 50. Kf1 {[%clk 0:00:22.4]} 50... Ke3 {[%clk 0:00:16]} 51. Ke1
{[%clk 0:00:20]} 51... Ra1 {[%clk 0:00:15.5]} 52. f4 {[%clk 0:00:19.8]} 52...
gxf4 {[%clk 0:00:15]} 53. g5 {[%clk 0:00:20.4]} 53... hxg5 {[%clk 0:00:14.9]}
54. h6 {[%clk 0:00:20.6]} 54... d2+ {[%clk 0:00:12.9]} 55. Kf1 {[%clk
0:00:20.4]} 55... Rxd1+ {[%clk 0:00:12.6]} 56. Kg2 {[%clk 0:00:21.3]} 56... Rh1
{[%clk 0:00:12.1]} 57. Kxh1 {[%clk 0:00:21]} 57... d1=Q+ {[%clk 0:00:12.1]} 58.
Kg2 {[%clk 0:00:21.6]} 58... Qf3+ {[%clk 0:00:12.2]} 59. Kg1 {[%clk 0:00:21.4]}
59... Qf2+ {[%clk 0:00:11.7]} 60. Kh1 {[%clk 0:00:22.3]} 60... Kf3 {[%clk
0:00:11.7]} 61. h7 {[%clk 0:00:22.7]} 61... Qg2# {[%clk 0:00:11.8]} 0-1

[Event "Late-Titled-Tuesday-Blitz-May-14-2024"]
[Site "Chess.com"]
[Date "2024.05.14"]
[Round "8"]
[White "Sanan_Sjugirov"]
[Black "ameetghasi100"]
[Result "1-0"]
[WhiteElo "3032"]
[BlackElo "2790"]
[TimeControl "180+1"]
[EndTime "15:27:39 PDT"]
[Termination "Sanan_Sjugirov won on time"]

1. d4 {[%clk 0:03:00.9]} 1... Nf6 {[%clk 0:02:58.3]} 2. c4 {[%clk 0:03:00.7]}
2... c6 {[%clk 0:02:46.6]} 3. Nf3 {[%clk 0:03:00]} 3... d6 {[%clk 0:02:47]} 4.
Nc3 {[%clk 0:03:00.3]} 4... g6 {[%clk 0:02:44.3]} 5. e4 {[%clk 0:03:00.4]} 5...
Bg7 {[%clk 0:02:44.6]} 6. Be2 {[%clk 0:03:01.1]} 6... O-O {[%clk 0:02:44.8]} 7.
O-O {[%clk 0:03:01.8]} 7... Nbd7 {[%clk 0:02:42.8]} 8. Be3 {[%clk 0:03:01]} 8...
e5 {[%clk 0:02:42.8]} 9. d5 {[%clk 0:03:01.2]} 9... c5 {[%clk 0:02:38.9]} 10.
Ne1 {[%clk 0:03:01.3]} 10... Ne8 {[%clk 0:02:25.6]} 11. g4 {[%clk 0:03:00.3]}
11... a6 {[%clk 0:02:18.2]} 12. Kh1 {[%clk 0:02:56.6]} 12... Bf6 {[%clk
0:01:58.1]} 13. Qd2 {[%clk 0:02:55.7]} 13... Ng7 {[%clk 0:01:57.6]} 14. Rg1
{[%clk 0:02:55.5]} 14... Be7 {[%clk 0:01:54.5]} 15. Nd3 {[%clk 0:02:52.8]} 15...
g5 {[%clk 0:01:48.4]} 16. a3 {[%clk 0:02:41.6]} 16... b6 {[%clk 0:01:43.3]} 17.
b4 {[%clk 0:02:41.5]} 17... a5 {[%clk 0:01:42.6]} 18. bxc5 {[%clk 0:02:39.4]}
18... bxc5 {[%clk 0:01:43.5]} 19. Rab1 {[%clk 0:02:38.5]} 19... Ra6 {[%clk
0:01:40.8]} 20. Qc2 {[%clk 0:02:34.5]} 20... h6 {[%clk 0:01:39]} 21. Bd2 {[%clk
0:02:33.3]} 21... Ne8 {[%clk 0:01:37.8]} 22. Nd1 {[%clk 0:02:32.9]} 22... Ndf6
{[%clk 0:01:36.4]} 23. f3 {[%clk 0:02:32.3]} 23... Bd7 {[%clk 0:01:28.9]} 24.
Ne3 {[%clk 0:02:32.3]} 24... Ng7 {[%clk 0:01:28]} 25. Nf2 {[%clk 0:02:27.4]}
25... Qc7 {[%clk 0:01:25.3]} 26. Kg2 {[%clk 0:02:24.6]} 26... Rb8 {[%clk
0:01:24.1]} 27. h4 {[%clk 0:02:15.4]} 27... Nh7 {[%clk 0:01:16.4]} 28. Nf5
{[%clk 0:02:12.7]} 28... Nxf5 {[%clk 0:01:13.7]} 29. exf5 {[%clk 0:02:13.6]}
29... a4 {[%clk 0:01:00.9]} 30. Rh1 {[%clk 0:02:09.1]} 30... Rxb1 {[%clk
0:00:58.8]} 31. Qxb1 {[%clk 0:02:08.7]} 31... Rb6 {[%clk 0:00:58.8]} 32. Qc1
{[%clk 0:02:09.2]} 32... Qb8 {[%clk 0:00:35.6]} 33. hxg5 {[%clk 0:02:05.4]}
33... hxg5 {[%clk 0:00:32.6]} 34. Ne4 {[%clk 0:02:04.6]} 34... f6 {[%clk
0:00:31.9]} 35. Rh6 {[%clk 0:01:56.7]} 35... Qf8 {[%clk 0:00:30.4]} 36. Qh1
{[%clk 0:01:55.2]} 36... Qf7 {[%clk 0:00:28.2]} 37. Rg6+ {[%clk 0:01:48.5]}
37... Kh8 {[%clk 0:00:26.4]} 38. Qh6 {[%clk 0:01:47]} 38... Bf8 {[%clk
0:00:18.5]} 39. Qh5 {[%clk 0:01:46.8]} 39... Bg7 {[%clk 0:00:09.3]} 40. Bxg5
{[%clk 0:01:43.2]} 40... Rb2 {[%clk 0:00:08.4]} 41. Kf2 {[%clk 0:01:39.3]} 41...
Be8 {[%clk 0:00:07.6]} 42. Bc1 {[%clk 0:01:37]} 42... Rc2 {[%clk 0:00:06.9]} 43.
Bh6 {[%clk 0:01:34.3]} 43... Bxh6 {[%clk 0:00:05.1]} 44. Qxh6 {[%clk 0:01:35.2]}
44... Qf8 {[%clk 0:00:02.6]} 45. Qxf8+ {[%clk 0:01:34.2]} 45... Nxf8 {[%clk
0:00:03.5]} 46. Rxf6 {[%clk 0:01:34.6]} 46... Kg7 {[%clk 0:00:03.4]} 47. Rxd6
{[%clk 0:01:34.5]} 47... Ra2 {[%clk 0:00:04.3]} 48. Ra6 {[%clk 0:01:32.1]} 48...
Rxa3 {[%clk 0:00:04.3]} 49. Nxc5 {[%clk 0:01:32.2]} 49... Ra2 {[%clk 0:00:04.5]}
50. Ra7+ {[%clk 0:01:31.2]} 50... Kg8 {[%clk 0:00:04.1]} 51. Ne4 {[%clk
0:01:30.7]} 51... Nd7 {[%clk 0:00:02.5]} 52. c5 {[%clk 0:01:30.9]} 52... Nxc5
{[%clk 0:00:02.6]} 53. Nxc5 {[%clk 0:01:30.2]} 53... Bb5 {[%clk 0:00:03.2]} 54.
Kg3 {[%clk 0:01:28.2]} 54... Rxe2 {[%clk 0:00:03.6]} 55. Ne4 {[%clk 0:01:27.3]}
55... Re3 {[%clk 0:00:02.6]} 56. d6 {[%clk 0:01:26.7]} 56... Bc6 {[%clk
0:00:02.6]} 57. Kf2 {[%clk 0:01:11.8]} 57... Rd3 {[%clk 0:00:02.8]} 58. Nf6+
{[%clk 0:01:10.4]} 58... Kf8 {[%clk 0:00:02.7]} 59. d7 {[%clk 0:01:06.9]} 59...
a3 {[%clk 0:00:01.8]} 60. g5 {[%clk 0:01:05.2]} 60... Ke7 {[%clk 0:00:01.3]} 61.
Ke2 {[%clk 0:01:01.3]} 61... Rb3 {[%clk 0:00:00.7]} 62. g6 {[%clk 0:00:55.2]}
62... Rb2+ {[%clk 0:00:00.8]} 63. Kd3 {[%clk 0:00:53.9]} 63... a2 {[%clk
0:00:00.5]} 64. g7 {[%clk 0:00:52.6]} 64... Rg2 {[%clk 0:00:00.2]} 65. g8=Q
{[%clk 0:00:51.2]} 65... Rxg8 {[%clk 0:00:00.7]} 66. Nxg8+ {[%clk 0:00:52.1]}
1-0

[Event "Late-Titled-Tuesday-Blitz-May-14-2024"]
[Site "Chess.com"]
[Date "2024.05.14"]
[Round "8"]
[White "ritanovikova"]
[Black "munozmiguelangel1982"]
[Result "1-0"]
[WhiteElo "2163"]
[BlackElo "2239"]
[TimeControl "180+1"]
[EndTime "15:27:45 PDT"]
[Termination "ritanovikova won on time"]

1. e4 {[%clk 0:02:55]} 1... e5 {[%clk 0:02:59.2]} 2. Nf3 {[%clk 0:02:53.6]} 2...
Nc6 {[%clk 0:02:59.3]} 3. Bc4 {[%clk 0:02:54.3]} 3... Bc5 {[%clk 0:02:59.3]} 4.
c3 {[%clk 0:02:54.8]} 4... Nf6 {[%clk 0:02:59.5]} 5. d4 {[%clk 0:02:55.2]} 5...
exd4 {[%clk 0:03:00.4]} 6. cxd4 {[%clk 0:02:54.6]} 6... Bb4+ {[%clk 0:03:01]} 7.
Bd2 {[%clk 0:02:55.4]} 7... Bxd2+ {[%clk 0:03:00.4]} 8. Nbxd2 {[%clk 0:02:55.8]}
8... d5 {[%clk 0:03:01.1]} 9. exd5 {[%clk 0:02:55.5]} 9... Nxd5 {[%clk
0:03:00.9]} 10. O-O {[%clk 0:02:56.4]} 10... O-O {[%clk 0:03:01.4]} 11. Rc1
{[%clk 0:02:55.9]} 11... Nb6 {[%clk 0:02:59.5]} 12. Bb3 {[%clk 0:02:55.9]} 12...
Nxd4 {[%clk 0:02:57.6]} 13. Nxd4 {[%clk 0:02:55.7]} 13... Qxd4 {[%clk
0:02:58.5]} 14. Rxc7 {[%clk 0:02:55.5]} 14... Qxb2 {[%clk 0:02:57.5]} 15. Qf3
{[%clk 0:02:46.6]} 15... Bd7 {[%clk 0:02:21.6]} 16. Nc4 {[%clk 0:02:28.6]} 16...
Nxc4 {[%clk 0:02:20.2]} 17. Bxc4 {[%clk 0:02:19.8]} 17... Bc6 {[%clk 0:01:54.8]}
18. Bxf7+ {[%clk 0:02:05.9]} 18... Kh8 {[%clk 0:01:51]} 19. Qh5 {[%clk
0:02:01.4]} 19... Qf6 {[%clk 0:01:45]} 20. Bb3 {[%clk 0:01:55.6]} 20... Rac8
{[%clk 0:01:25.9]} 21. Bc2 {[%clk 0:01:41.7]} 21... h6 {[%clk 0:01:24.7]} 22.
Rxc8 {[%clk 0:01:35.2]} 22... Rxc8 {[%clk 0:01:22.8]} 23. Qg4 {[%clk 0:01:32.7]}
23... Rf8 {[%clk 0:01:20.3]} 24. h4 {[%clk 0:01:20.6]} 24... Bb5 {[%clk
0:01:09.1]} 25. Qe4 {[%clk 0:01:13.7]} 25... g6 {[%clk 0:01:03.4]} 26. Rb1
{[%clk 0:01:00.2]} 26... Qxf2+ {[%clk 0:01:00.7]} 27. Kh2 {[%clk 0:00:52.5]}
27... Rf4 {[%clk 0:00:41.9]} 28. Qe5+ {[%clk 0:00:51]} 28... Kh7 {[%clk
0:00:32.2]} 29. Qc7+ {[%clk 0:00:42.8]} 29... Rf7 {[%clk 0:00:31.5]} 30. Qg3
{[%clk 0:00:29.6]} 30... Qxg3+ {[%clk 0:00:18.9]} 31. Kxg3 {[%clk 0:00:30.5]}
31... Bc6 {[%clk 0:00:17.7]} 32. h5 {[%clk 0:00:30]} 32... Rd7 {[%clk
0:00:12.9]} 33. hxg6+ {[%clk 0:00:28.8]} 33... Kg7 {[%clk 0:00:13.8]} 34. a4
{[%clk 0:00:16.8]} 34... Rd2 {[%clk 0:00:13.7]} 35. Rc1 {[%clk 0:00:14.1]} 35...
Rxg2+ {[%clk 0:00:13.5]} 36. Kf4 {[%clk 0:00:12.6]} 36... Rg5 {[%clk 0:00:10.5]}
37. Bd3 {[%clk 0:00:11.2]} 37... Be8 {[%clk 0:00:07.1]} 38. Rc7+ {[%clk
0:00:10.5]} 38... Kf8 {[%clk 0:00:03.1]} 39. Rc8 {[%clk 0:00:10.1]} 39... Kg7
{[%clk 0:00:03]} 40. Rc7+ {[%clk 0:00:10.1]} 40... Kf8 {[%clk 0:00:02.8]} 41.
Rxb7 {[%clk 0:00:10.3]} 41... Ra5 {[%clk 0:00:03.1]} 42. Rb8 {[%clk 0:00:09.3]}
42... Rg5 {[%clk 0:00:02.8]} 43. Bb5 {[%clk 0:00:09.2]} 43... Rxb5 {[%clk
0:00:01.4]} 44. axb5 {[%clk 0:00:09]} 1-0

[Event "Late-Titled-Tuesday-Blitz-May-14-2024"]
[Site "Chess.com"]
[Date "2024.05.14"]
[Round "8"]
[White "N_Mullodzhanov"]
[Black "Cherepov_Alexej"]
[Result "0-1"]
[WhiteElo "2567"]
[BlackElo "2425"]
[TimeControl "180+1"]
[EndTime "15:27:46 PDT"]
[Termination "Cherepov_Alexej won on time"]

1. e4 {[%clk 0:03:00.9]} 1... Nf6 {[%clk 0:02:59]} 2. e5 {[%clk 0:03:00.8]} 2...
Nd5 {[%clk 0:02:59.1]} 3. d4 {[%clk 0:02:59.6]} 3... d6 {[%clk 0:02:58.6]} 4.
Nf3 {[%clk 0:03:00]} 4... Bg4 {[%clk 0:02:57.7]} 5. Be2 {[%clk 0:02:59.8]} 5...
c6 {[%clk 0:02:57.8]} 6. O-O {[%clk 0:02:59.1]} 6... Bxf3 {[%clk 0:02:57.9]} 7.
Bxf3 {[%clk 0:02:59.3]} 7... dxe5 {[%clk 0:02:58.6]} 8. dxe5 {[%clk 0:02:59.3]}
8... e6 {[%clk 0:02:59.1]} 9. g3 {[%clk 0:02:56.4]} 9... Nd7 {[%clk 0:02:57]}
10. h4 {[%clk 0:02:51.9]} 10... Nxe5 {[%clk 0:02:53]} 11. Bg2 {[%clk 0:02:49]}
11... Be7 {[%clk 0:02:43.9]} 12. Qe2 {[%clk 0:02:48.6]} 12... Nd7 {[%clk
0:02:37.7]} 13. Rd1 {[%clk 0:02:46.8]} 13... O-O {[%clk 0:02:36.1]} 14. c4
{[%clk 0:02:44.7]} 14... N5f6 {[%clk 0:02:35.9]} 15. Nc3 {[%clk 0:02:41.7]}
15... Qc7 {[%clk 0:02:32.8]} 16. Be3 {[%clk 0:02:26.6]} 16... Bc5 {[%clk
0:02:23.8]} 17. Bf4 {[%clk 0:01:56.6]} 17... e5 {[%clk 0:02:19.4]} 18. Bg5
{[%clk 0:01:56.6]} 18... h6 {[%clk 0:02:15.8]} 19. Bxf6 {[%clk 0:01:54.7]} 19...
Nxf6 {[%clk 0:02:15.6]} 20. Ne4 {[%clk 0:01:55.1]} 20... Nxe4 {[%clk 0:02:09.4]}
21. Qxe4 {[%clk 0:01:49]} 21... f5 {[%clk 0:02:07.9]} 22. Qe2 {[%clk 0:01:43.9]}
22... e4 {[%clk 0:02:05.8]} 23. a3 {[%clk 0:01:35.9]} 23... a5 {[%clk
0:02:05.2]} 24. Kh2 {[%clk 0:01:25.8]} 24... Rae8 {[%clk 0:01:57.8]} 25. b3
{[%clk 0:00:58.3]} 25... f4 {[%clk 0:01:50.7]} 26. Qd2 {[%clk 0:00:23.6]} 26...
e3 {[%clk 0:01:20.8]} 27. Qd7 {[%clk 0:00:17.6]} 27... Qxd7 {[%clk 0:01:17.2]}
28. Rxd7 {[%clk 0:00:16.1]} 28... e2 {[%clk 0:01:16.9]} 29. Rxb7 {[%clk
0:00:04.6]} 29... Bxf2 {[%clk 0:01:10.4]} 30. gxf4 {[%clk 0:00:04.5]} 30... e1=Q
{[%clk 0:01:06.7]} 31. Rxe1 {[%clk 0:00:04.2]} 31... Rxe1 {[%clk 0:01:05.6]} 32.
Bxc6 {[%clk 0:00:05.1]} 32... Bxh4 {[%clk 0:01:01]} 33. Bd5+ {[%clk 0:00:05.6]}
33... Kh8 {[%clk 0:01:00.4]} 34. Bf7 {[%clk 0:00:05.7]} 34... Re7 {[%clk
0:00:56.5]} 35. Rxe7 {[%clk 0:00:03.1]} 35... Bxe7 {[%clk 0:00:55.9]} 36. Bd5
{[%clk 0:00:04]} 36... Bxa3 {[%clk 0:00:55.8]} 37. Kg3 {[%clk 0:00:03.8]} 37...
Bd6 {[%clk 0:00:55.8]} 38. Kg4 {[%clk 0:00:04.4]} 38... Rxf4+ {[%clk 0:00:54.6]}
39. Kh3 {[%clk 0:00:04.9]} 39... Rf8 {[%clk 0:00:52.1]} 40. Kg2 {[%clk
0:00:04.7]} 40... Rb8 {[%clk 0:00:51.9]} 41. Kf3 {[%clk 0:00:01.7]} 41... Rxb3+
{[%clk 0:00:51.2]} 42. Ke4 {[%clk 0:00:02.6]} 42... Rb4 {[%clk 0:00:48.8]} 43.
Kd4 {[%clk 0:00:02.7]} 43... a4 {[%clk 0:00:46.9]} 44. Kc3 {[%clk 0:00:03.1]}
44... a3 {[%clk 0:00:45.6]} 45. c5 {[%clk 0:00:01.2]} 45... Bxc5 {[%clk
0:00:45]} 46. Ba2 {[%clk 0:00:01.7]} 46... Rb2 {[%clk 0:00:44.3]} 47. Bc4 {[%clk
0:00:01.5]} 47... Be7 {[%clk 0:00:42.7]} 48. Bd5 {[%clk 0:00:01.6]} 48... Bf6+
{[%clk 0:00:42.6]} 49. Kc4 {[%clk 0:00:01.9]} 49... a2 {[%clk 0:00:42.2]} 50.
Bf3 {[%clk 0:00:00.2]} 50... a1=Q {[%clk 0:00:39.9]} 51. Kd5 {[%clk 0:00:01.1]}
51... Qa5+ {[%clk 0:00:37.7]} 52. Ke6 {[%clk 0:00:00.8]} 52... Qe5+ {[%clk
0:00:37.4]} 53. Kf7 {[%clk 0:00:00.4]} 53... Qe7+ {[%clk 0:00:34.5]} 54. Kg6
{[%clk 0:00:00.4]} 54... Qe8+ {[%clk 0:00:34.1]} 55. Kf5 {[%clk 0:00:00.6]}
55... Rb5+ {[%clk 0:00:33.9]} 56. Kg4 {[%clk 0:00:00.9]} 56... Qh5+ {[%clk
0:00:31.3]} 57. Kg3 {[%clk 0:00:00.5]} 57... Rb3 {[%clk 0:00:29.5]} 58. Kg2
{[%clk 0:00:00.3]} 58... Qxf3+ {[%clk 0:00:29.6]} 0-1

[Event "Late-Titled-Tuesday-Blitz-May-14-2024"]
[Site "Chess.com"]
[Date "2024.05.14"]
[Round "8"]
[White "Agibileg"]
[Black "Rital44"]
[Result "1-0"]
[WhiteElo "2877"]
[BlackElo "2716"]
[TimeControl "180+1"]
[EndTime "15:27:47 PDT"]
[Termination "Agibileg won by checkmate"]

1. d4 {[%clk 0:02:59.4]} 1... f5 {[%clk 0:02:59.9]} 2. Nf3 {[%clk 0:02:57.5]}
2... Nf6 {[%clk 0:02:59.7]} 3. g3 {[%clk 0:02:57.9]} 3... g6 {[%clk 0:02:59.1]}
4. Bg2 {[%clk 0:02:58.1]} 4... Bg7 {[%clk 0:02:59.6]} 5. O-O {[%clk 0:02:58.4]}
5... O-O {[%clk 0:02:59.9]} 6. b3 {[%clk 0:02:58.7]} 6... d6 {[%clk 0:02:55.1]}
7. Bb2 {[%clk 0:02:58.7]} 7... a5 {[%clk 0:02:55.1]} 8. Re1 {[%clk 0:02:56.8]}
8... a4 {[%clk 0:02:50.9]} 9. b4 {[%clk 0:02:50.9]} 9... c6 {[%clk 0:02:41.7]}
10. a3 {[%clk 0:02:46.4]} 10... Nbd7 {[%clk 0:02:27.7]} 11. c4 {[%clk
0:02:46.2]} 11... Nb6 {[%clk 0:02:21.5]} 12. Nbd2 {[%clk 0:02:45.9]} 12... Kh8
{[%clk 0:02:19]} 13. Qc2 {[%clk 0:02:45.1]} 13... d5 {[%clk 0:02:14.3]} 14. Ne5
{[%clk 0:02:42]} 14... Ne4 {[%clk 0:02:11.7]} 15. Ndf3 {[%clk 0:02:37.8]} 15...
dxc4 {[%clk 0:02:08.6]} 16. Nxc4 {[%clk 0:02:34.9]} 16... Be6 {[%clk 0:02:08.2]}
17. Nxb6 {[%clk 0:02:27]} 17... Qxb6 {[%clk 0:02:09.1]} 18. e3 {[%clk
0:02:21.5]} 18... Bb3 {[%clk 0:02:05.1]} 19. Qd3 {[%clk 0:02:14.8]} 19... Rad8
{[%clk 0:01:58.2]} 20. Qe2 {[%clk 0:02:04.1]} 20... Nd6 {[%clk 0:01:39]} 21.
Rac1 {[%clk 0:02:02]} 21... Qb5 {[%clk 0:01:34.4]} 22. Qxb5 {[%clk 0:01:56.9]}
22... Nxb5 {[%clk 0:01:31.5]} 23. Nd2 {[%clk 0:01:56.8]} 23... Bd5 {[%clk
0:01:18]} 24. Nc4 {[%clk 0:01:55]} 24... Bxc4 {[%clk 0:01:00.1]} 25. Rxc4 {[%clk
0:01:54.4]} 25... e6 {[%clk 0:01:00.2]} 26. Bf3 {[%clk 0:01:45.5]} 26... Rd7
{[%clk 0:00:59.9]} 27. Rc5 {[%clk 0:01:43.7]} 27... Ra8 {[%clk 0:00:56]} 28. h4
{[%clk 0:01:42.7]} 28... Kg8 {[%clk 0:00:56.1]} 29. Kg2 {[%clk 0:01:42.8]} 29...
Bf8 {[%clk 0:00:55.6]} 30. Rcc1 {[%clk 0:01:38.9]} 30... Kf7 {[%clk 0:00:56.2]}
31. g4 {[%clk 0:01:36.7]} 31... Be7 {[%clk 0:00:55]} 32. g5 {[%clk 0:01:34.3]}
32... Rh8 {[%clk 0:00:49.7]} 33. Be2 {[%clk 0:01:28]} 33... Rhd8 {[%clk
0:00:36.4]} 34. Bxb5 {[%clk 0:01:11.5]} 34... cxb5 {[%clk 0:00:37.3]} 35. Rc2
{[%clk 0:01:08.9]} 35... Bd6 {[%clk 0:00:28.1]} 36. Rec1 {[%clk 0:01:08.6]}
36... Ke7 {[%clk 0:00:28.7]} 37. Kf3 {[%clk 0:01:00.2]} 37... Rf8 {[%clk
0:00:27.9]} 38. Ke2 {[%clk 0:00:54.2]} 38... Re8 {[%clk 0:00:26.5]} 39. Rh1
{[%clk 0:00:44.4]} 39... Rc7 {[%clk 0:00:24.4]} 40. Rxc7+ {[%clk 0:00:43.4]}
40... Bxc7 {[%clk 0:00:25.3]} 41. h5 {[%clk 0:00:44.3]} 41... Kf7 {[%clk
0:00:20.8]} 42. hxg6+ {[%clk 0:00:43.8]} 42... Kxg6 {[%clk 0:00:20]} 43. f4
{[%clk 0:00:42.5]} 43... Rc8 {[%clk 0:00:15.7]} 44. Rh6+ {[%clk 0:00:39.6]}
44... Kf7 {[%clk 0:00:16]} 45. Rxh7+ {[%clk 0:00:39.5]} 45... Kg8 {[%clk
0:00:16.7]} 46. Rd7 {[%clk 0:00:37.9]} 46... Bxf4 {[%clk 0:00:16.6]} 47. exf4
{[%clk 0:00:33.9]} 47... Rc2+ {[%clk 0:00:17.3]} 48. Kd3 {[%clk 0:00:28.2]}
48... Rxb2 {[%clk 0:00:18.2]} 49. d5 {[%clk 0:00:28.5]} 49... exd5 {[%clk
0:00:15.9]} 50. Rxb7 {[%clk 0:00:28.9]} 50... Rb3+ {[%clk 0:00:14.5]} 51. Kd4
{[%clk 0:00:29.3]} 51... Rxa3 {[%clk 0:00:15.4]} 52. Rxb5 {[%clk 0:00:29.4]}
52... Rf3 {[%clk 0:00:15]} 53. Ke5 {[%clk 0:00:29.8]} 53... d4 {[%clk 0:00:15]}
54. Kf6 {[%clk 0:00:23]} 54... Rc3 {[%clk 0:00:12.3]} 55. Rb8+ {[%clk
0:00:22.7]} 55... Kh7 {[%clk 0:00:12.7]} 56. g6+ {[%clk 0:00:23]} 56... Kh6
{[%clk 0:00:13.3]} 57. Rh8# {[%clk 0:00:23.9]} 1-0